fUSD/lending_fUSD_20260621
["ID","MTS","AMOUNT","RATE_DAILY","PERIOD"]
[425937153,1782039051000,-500.0,0.00027671,2]
[425937195,1782039051000,-500.0,0.00027671,2]
[425937154,1782039051000,-500.0,0.00027671,2]
[425937181,1782039051000,-500.0,0.00027671,2]
[425937191,1782039051000,-500.0,0.00027671,2]
[425937180,1782039051000,-500.0,0.00027671,2]
[425937182,1782039051000,-500.0,0.00027671,2]
[425937183,1782039051000,-622.17253193,0.00027671,2]
[425937184,1782039051000,-500.0,0.00027671,2]
[425937187,1782039051000,-791.83,0.00027671,2]
[425937186,1782039051000,-3353.34,0.00027671,2]
[425937190,1782039051000,-500.0,0.00027671,2]
[425937188,1782039051000,-607.6,0.00027671,2]
[425937189,1782039051000,-615.45,0.00027671,2]
[425937194,1782039051000,-553.17,0.00027671,2]
[425937192,1782039051000,-500.0,0.00027671,2]
[425937193,1782039051000,-733.86,0.00027671,2]
[425937198,1782039051000,-500.0,0.00027671,2]
[425937196,1782039051000,-500.0,0.00027671,2]
[425937199,1782039051000,-500.0,0.00027671,2]
[425937197,1782039051000,-561.53,0.00027671,2]
[425937156,1782039051000,-5529.24,0.00027671,2]
[425937178,1782039051000,-500.0,0.00027671,2]
[425937179,1782039051000,-500.0,0.00027671,2]
[425937185,1782039051000,-495.60117996,0.00027671,2]
[425937172,1782039051000,-500.0,0.00027671,2]
[425937155,1782039051000,-848.21,0.00027671,2]
[425937177,1782039051000,-500.0,0.00027671,2]
[425937158,1782039051000,-500.0,0.00027671,2]
[425937157,1782039051000,-541.69278581,0.00027671,2]
[425937160,1782039051000,-544.37,0.00027671,2]
[425937159,1782039051000,-633.06,0.00027671,2]
[425937166,1782039051000,-500.0,0.00027671,2]
[425937169,1782039051000,-500.0,0.00027671,2]
[425937167,1782039051000,-500.0,0.00027671,2]
[425937168,1782039051000,-500.0,0.00027671,2]
[425937165,1782039051000,-662.46,0.00027671,2]
[425937161,1782039051000,-500.0,0.00027671,2]
[425937162,1782039051000,-500.0,0.00027671,2]
[425937163,1782039051000,-500.0,0.00027671,2]
[425937164,1782039051000,-500.0,0.00027671,2]
[425937171,1782039051000,-500.0,0.00027671,2]
[425937170,1782039051000,-500.0,0.00027671,2]
[425937174,1782039051000,-500.0,0.00027671,2]
[425937175,1782039051000,-500.0,0.00027671,2]
[425937173,1782039051000,-500.0,0.00027671,2]
[425937176,1782039051000,-500.0,0.00027671,2]
[425937231,1782039052000,-500.0,0.00027671,2]
[425937234,1782039052000,-500.0,0.00027671,2]
[425937236,1782039052000,-500.0,0.00027671,2]
[425937235,1782039052000,-420.423312,0.00027671,2]
[425937230,1782039052000,-536.39360677,0.00027671,2]
[425937233,1782039052000,-500.0,0.00027671,2]
[425937226,1782039052000,-4322.38,0.00027671,2]
[425937232,1782039052000,-500.0,0.00027671,2]
[425937238,1782039052000,-500.0,0.00027671,2]
[425937229,1782039052000,-2411.52,0.00027671,2]
[425937237,1782039052000,-262.22,0.00027671,2]
[425937249,1782039052000,-500.0,0.00027671,2]
[425937244,1782039052000,-500.0,0.00027671,2]
[425937245,1782039052000,-616.21,0.00027671,2]
[425937240,1782039052000,-500.0,0.00027671,2]
[425937241,1782039052000,-9261.94,0.00027671,2]
[425937239,1782039052000,-500.0,0.00027671,2]
[425937242,1782039052000,-500.0,0.00027671,2]
[425937247,1782039052000,-288.39198991,0.00027671,2]
[425937246,1782039052000,-586.9,0.00027671,2]
[425937250,1782039052000,-3694.74,0.00027671,2]
[425937248,1782039052000,-500.0,0.00027671,2]
[425937228,1782039052000,-500.0,0.00027671,2]
[425937243,1782039052000,-500.0,0.00027671,2]
[425937227,1782039052000,-500.0,0.00027671,2]
[425937203,1782039052000,-237.30265246,0.00027671,2]
[425937219,1782039052000,-5839.56,0.00027671,2]
[425937251,1782039052000,-3925.94,0.00027671,2]
[425937201,1782039052000,-3551.18,0.00027671,2]
[425937200,1782039052000,-500.0,0.00027671,2]
[425937202,1782039052000,-500.0,0.00027671,2]
[425937205,1782039052000,-500.0,0.00027671,2]
[425937206,1782039052000,-727.46,0.00027671,2]
[425937204,1782039052000,-500.0,0.00027671,2]
[425937207,1782039052000,-4478.36,0.00027671,2]
[425937208,1782039052000,-500.0,0.00027671,2]
[425937212,1782039052000,-500.0,0.00027671,2]
[425937213,1782039052000,-500.0,0.00027671,2]
[425937217,1782039052000,-500.0,0.00027671,2]
[425937209,1782039052000,-500.0,0.00027671,2]
[425937210,1782039052000,-3329.79,0.00027671,2]
[425937215,1782039052000,-500.0,0.00027671,2]
[425937221,1782039052000,-1375.95,0.00027671,2]
[425937224,1782039052000,-939.31,0.00027671,2]
[425937222,1782039052000,-500.0,0.00027671,2]
[425937216,1782039052000,-500.0,0.00027671,2]
[425937214,1782039052000,-8584.48,0.00027671,2]
[425937225,1782039052000,-500.0,0.00027671,2]
[425937223,1782039052000,-500.0,0.00027671,2]
[425937218,1782039052000,-500.0,0.00027671,2]
[425937220,1782039052000,-500.0,0.00027671,2]
[425937211,1782039052000,-500.0,0.00027671,2]
[425937252,1782039052000,-500.0,0.00027671,2]
[425937291,1782039052000,-4032.62,0.00027671,2]
[425937254,1782039052000,-500.0,0.00027671,2]
[425937283,1782039052000,-500.0,0.00027671,2]
[425937281,1782039052000,-500.0,0.00027671,2]
[425937285,1782039052000,-3059.52,0.00027671,2]
[425937284,1782039052000,-500.0,0.00027671,2]
[425937288,1782039052000,-500.0,0.00027671,2]
[425937305,1782039052000,-500.0,0.00027671,2]
[425937286,1782039052000,-500.0,0.00027671,2]
[425937289,1782039052000,-500.0,0.00027671,2]
[425937290,1782039052000,-7989.76,0.00027671,2]
[425937296,1782039052000,-5588.49,0.00027671,2]
[425937294,1782039052000,-500.0,0.00027671,2]
[425937293,1782039052000,-369.85,0.00027671,2]
[425937292,1782039052000,-500.0,0.00027671,2]
[425937299,1782039052000,-500.0,0.00027671,2]
[425937295,1782039052000,-2839.5,0.00027671,2]
[425937297,1782039052000,-500.0,0.00027671,2]
[425937300,1782039052000,-500.0,0.00027671,2]
[425937298,1782039052000,-500.0,0.00027671,2]
[425937302,1782039052000,-500.0,0.00027671,2]
[425937301,1782039052000,-500.0,0.00027671,2]
[425937303,1782039052000,-930.27,0.00027671,2]
[425937306,1782039052000,-8635.26,0.00027671,2]
[425937253,1782039052000,-500.0,0.00027671,2]
[425937287,1782039052000,-673.72,0.00027671,2]
[425937282,1782039052000,-500.0,0.00027671,2]
[425937304,1782039052000,-12476.71,0.00027671,2]
[425937280,1782039052000,-500.0,0.00027671,2]
[425937279,1782039052000,-845.88,0.00027671,2]
[425937255,1782039052000,-500.0,0.00027671,2]
[425937257,1782039052000,-500.0,0.00027671,2]
[425937259,1782039052000,-500.0,0.00027671,2]
[425937260,1782039052000,-500.0,0.00027671,2]
[425937258,1782039052000,-1286.43,0.00027671,2]
[425937261,1782039052000,-4074.66,0.00027671,2]
[425937265,1782039052000,-500.0,0.00027671,2]
[425937262,1782039052000,-9524.29,0.00027671,2]
[425937268,1782039052000,-6185.48,0.00027671,2]
[425937263,1782039052000,-1193.26,0.00027671,2]
[425937267,1782039052000,-500.0,0.00027671,2]
[425937256,1782039052000,-500.0,0.00027671,2]
[425937266,1782039052000,-500.0,0.00027671,2]
[425937269,1782039052000,-500.0,0.00027671,2]
[425937271,1782039052000,-761.06,0.00027671,2]
[425937273,1782039052000,-500.0,0.00027671,2]
[425937272,1782039052000,-696.98,0.00027671,2]
[425937275,1782039052000,-500.0,0.00027671,2]
[425937278,1782039052000,-500.0,0.00027671,2]
[425937277,1782039052000,-500.0,0.00027671,2]
[425937270,1782039052000,-4111.73,0.00027671,2]
[425937274,1782039052000,-500.0,0.00027671,2]
[425937276,1782039052000,-3443.8,0.00027671,2]
[425937264,1782039052000,-500.0,0.00027671,2]
[425937340,1782039053000,-500.0,0.00027671,2]
[425937338,1782039053000,-886.74,0.00027671,2]
[425937339,1782039053000,-500.0,0.00027671,2]
[425937333,1782039053000,-533.66,0.00027671,2]
[425937342,1782039053000,-454.19796267,0.00027671,2]
[425937341,1782039053000,-505.98,0.00027671,2]
[425937337,1782039053000,-500.0,0.00027671,2]
[425937334,1782039053000,-1081.7,0.00027671,2]
[425937336,1782039053000,-3386.18,0.00027671,2]
[425937335,1782039053000,-4292.96,0.00027671,2]
[425937345,1782039053000,-500.0,0.00027671,2]
[425937349,1782039053000,-500.0,0.00027671,2]
[425937346,1782039053000,-3670.41,0.00027671,2]
[425937343,1782039053000,-500.0,0.00027671,2]
[425937348,1782039053000,-1061.83,0.00027671,2]
[425937350,1782039053000,-625.47,0.00027671,2]
[425937344,1782039053000,-500.0,0.00027671,2]
[425937351,1782039053000,-767.75,0.00027671,2]
[425937352,1782039053000,-500.0,0.00027671,2]
[425937327,1782039053000,-521.94,0.00027671,2]
[425937354,1782039053000,-500.0,0.00027671,2]
[425937347,1782039053000,-500.0,0.00027671,2]
[425937330,1782039053000,-969.34,0.00027671,2]
[425937314,1782039053000,-500.0,0.00027671,2]
[425937323,1782039053000,-7096.82,0.00027671,2]
[425937353,1782039053000,-500.0,0.00027671,2]
[425937308,1782039053000,-4329.45,0.00027671,2]
[425937310,1782039053000,-7992.35,0.00027671,2]
[425937309,1782039053000,-500.0,0.00027671,2]
[425937307,1782039053000,-500.0,0.00027671,2]
[425937320,1782039053000,-4573.85,0.00027671,2]
[425937321,1782039053000,-5769.58,0.00027671,2]
[425937311,1782039053000,-500.0,0.00027671,2]
[425937315,1782039053000,-2859.22,0.00027671,2]
[425937313,1782039053000,-500.0,0.00027671,2]
[425937329,1782039053000,-500.0,0.00027671,2]
[425937312,1782039053000,-500.0,0.00027671,2]
[425937317,1782039053000,-500.0,0.00027671,2]
[425937316,1782039053000,-500.0,0.00027671,2]
[425937319,1782039053000,-500.0,0.00027671,2]
[425937322,1782039053000,-500.0,0.00027671,2]
[425937324,1782039053000,-500.0,0.00027671,2]
[425937328,1782039053000,-500.0,0.00027671,2]
[425937325,1782039053000,-500.0,0.00027671,2]
[425937326,1782039053000,-626.25,0.00027671,2]
[425937331,1782039053000,-500.0,0.00027671,2]
[425937332,1782039053000,-576.81,0.00027671,2]
[425937318,1782039053000,-500.0,0.00027671,2]
[425937360,1782039053000,-4615.01,0.00027671,2]
[425937358,1782039053000,-8358.41,0.00027671,2]
[425937356,1782039053000,-500.0,0.00027671,2]
[425937386,1782039053000,-500.0,0.00027671,2]
[425937389,1782039053000,-500.0,0.00027671,2]
[425937387,1782039053000,-500.0,0.00027671,2]
[425937382,1782039053000,-500.0,0.00027671,2]
[425937388,1782039053000,-794.89,0.00027671,2]
[425937385,1782039053000,-211.752289,0.00027671,2]
[425937391,1782039053000,-5945.0,0.00027671,2]
[425937393,1782039053000,-500.0,0.00027671,2]
[425937390,1782039053000,-562.14,0.00027671,2]
[425937392,1782039053000,-4058.51,0.00027671,2]
[425937383,1782039053000,-5462.6,0.00027671,2]
[425937394,1782039053000,-500.0,0.00027671,2]
[425937397,1782039053000,-3297.26,0.00027671,2]
[425937398,1782039053000,-500.0,0.00027671,2]
[425937395,1782039053000,-500.0,0.00027671,2]
[425937399,1782039053000,-2428.94,0.00027671,2]
[425937400,1782039053000,-4800.04,0.00027671,2]
[425937401,1782039053000,-500.0,0.00027671,2]
[425937355,1782039053000,-500.0,0.00027671,2]
[425937402,1782039053000,-1000.0,0.00027671,2]
[425937405,1782039053000,-500.0,0.00027671,2]
[425937404,1782039053000,-500.0,0.00027671,2]
[425937396,1782039053000,-499.70084309,0.00027671,2]
[425937384,1782039053000,-500.0,0.00027671,2]
[425937403,1782039053000,-500.0,0.00027671,2]
[425937381,1782039053000,-980.9,0.00027671,2]
[425937359,1782039053000,-500.0,0.00027671,2]
[425937380,1782039053000,-704.1,0.00027671,2]
[425937362,1782039053000,-500.0,0.00027671,2]
[425937363,1782039053000,-500.0,0.00027671,2]
[425937364,1782039053000,-4415.71,0.00027671,2]
[425937361,1782039053000,-500.0,0.00027671,2]
[425937365,1782039053000,-6060.25,0.00027671,2]
[425937367,1782039053000,-500.0,0.00027671,2]
[425937369,1782039053000,-500.0,0.00027671,2]
[425937366,1782039053000,-679.09,0.00027671,2]
[425937357,1782039053000,-500.0,0.00027671,2]
[425937371,1782039053000,-3759.49,0.00027671,2]
[425937372,1782039053000,-4367.63,0.00027671,2]
[425937370,1782039053000,-500.0,0.00027671,2]
[425937378,1782039053000,-500.0,0.00027671,2]
[425937379,1782039053000,-591.3,0.00027671,2]
[425937376,1782039053000,-500.0,0.00027671,2]
[425937373,1782039053000,-5449.18,0.00027671,2]
[425937375,1782039053000,-937.4,0.00027671,2]
[425937374,1782039053000,-14378.51,0.00027671,2]
[425937377,1782039053000,-509.5,0.00027671,2]
[425937368,1782039053000,-692.04,0.00027671,2]
[425937443,1782039054000,-500.0,0.00027671,2]
[425937436,1782039054000,-6506.45,0.00027671,2]
[425937428,1782039054000,-580.53078941,0.00027671,2]
[425937429,1782039054000,-985.05,0.00027671,2]
[425937430,1782039054000,-500.0,0.00027671,2]
[425937424,1782039054000,-993.47,0.00027671,2]
[425937434,1782039054000,-500.0,0.00027671,2]
[425937435,1782039054000,-500.0,0.00027671,2]
[425937437,1782039054000,-399.54095249,0.00027671,2]
[425937442,1782039054000,-3703.49,0.00027671,2]
[425937438,1782039054000,-5106.38,0.00027671,2]
[425937441,1782039054000,-4078.59,0.00027671,2]
[425937439,1782039054000,-500.0,0.00027671,2]
[425937444,1782039054000,-500.0,0.00027671,2]
[425937446,1782039054000,-500.0,0.00027671,2]
[425937448,1782039054000,-1588.08,0.00027675,2]
[425937433,1782039054000,-1599.37,0.00027671,2]
[425937447,1782039054000,-1643.3,0.00027675,2]
[425937440,1782039054000,-3138.47,0.00027671,2]
[425937422,1782039054000,-3987.67,0.00027671,2]
[425937415,1782039054000,-500.0,0.00027671,2]
[425937426,1782039054000,-500.0,0.00027671,2]
[425937445,1782039054000,-523.99,0.00027671,2]
[425937409,1782039054000,-500.0,0.00027671,2]
[425937406,1782039054000,-500.0,0.00027671,2]
[425937407,1782039054000,-718.6,0.00027671,2]
[425937408,1782039054000,-500.0,0.00027671,2]
[425937411,1782039054000,-513.04,0.00027671,2]
[425937410,1782039054000,-1912.81,0.00027671,2]
[425937413,1782039054000,-3902.92,0.00027671,2]
[425937412,1782039054000,-274.62,0.00027671,2]
[425937414,1782039054000,-500.0,0.00027671,2]
[425937418,1782039054000,-500.0,0.00027671,2]
[425937419,1782039054000,-500.0,0.00027671,2]
[425937416,1782039054000,-500.0,0.00027671,2]
[425937420,1782039054000,-500.0,0.00027671,2]
[425937417,1782039054000,-500.0,0.00027671,2]
[425937421,1782039054000,-875.1,0.00027671,2]
[425937423,1782039054000,-683.91,0.00027671,2]
[425937425,1782039054000,-500.0,0.00027671,2]
[425937432,1782039054000,-5761.44,0.00027671,2]
[425937431,1782039054000,-500.0,0.00027671,2]
[425937450,1782039054000,-500.0,0.00027944,2]
[425937427,1782039054000,-500.0,0.00027671,2]
[425937452,1782039054000,-500.0,0.00027944,2]
[425937478,1782039054000,-500.0,0.00027945,2]
[425937473,1782039054000,-563.13855028,0.00027945,2]
[425937476,1782039054000,-500.0,0.00027945,2]
[425937479,1782039054000,-500.0,0.00027945,2]
[425937482,1782039054000,-855.77,0.00027945,2]
[425937481,1782039054000,-500.0,0.00027945,2]
[425937477,1782039054000,-500.0,0.00027945,2]
[425937484,1782039054000,-717.15,0.00027945,2]
[425937485,1782039054000,-500.0,0.00027945,2]
[425937487,1782039054000,-500.0,0.00027945,2]
[425937483,1782039054000,-500.0,0.00027945,2]
[425937489,1782039054000,-500.0,0.00027945,2]
[425937491,1782039054000,-500.0,0.00027945,2]
[425937488,1782039054000,-500.0,0.00027945,2]
[425937490,1782039054000,-500.0,0.00027945,2]
[425937493,1782039054000,-500.0,0.00027945,2]
[425937492,1782039054000,-500.0,0.00027945,2]
[425937494,1782039054000,-500.0,0.00027945,2]
[425937449,1782039054000,-185.29189923,0.00027935,2]
[425937480,1782039054000,-500.0,0.00027945,2]
[425937475,1782039054000,-500.0,0.00027945,2]
[425937486,1782039054000,-500.0,0.00027945,2]
[425937472,1782039054000,-500.0,0.00027945,2]
[425937457,1782039054000,-500.0,0.00027945,2]
[425937474,1782039054000,-500.0,0.00027945,2]
[425937451,1782039054000,-411.55,0.00027944,2]
[425937454,1782039054000,-500.0,0.00027944,2]
[425937453,1782039054000,-500.0,0.00027944,2]
[425937456,1782039054000,-500.0,0.00027945,2]
[425937458,1782039054000,-500.0,0.00027945,2]
[425937455,1782039054000,-513.44426899,0.00027945,2]
[425937460,1782039054000,-605.3865617,0.00027945,2]
[425937465,1782039054000,-502.15,0.00027945,2]
[425937459,1782039054000,-500.0,0.00027945,2]
[425937462,1782039054000,-904.35,0.00027945,2]
[425937470,1782039054000,-322.24125787,0.00027945,2]
[425937463,1782039054000,-500.0,0.00027945,2]
[425937471,1782039054000,-500.0,0.00027945,2]
[425937466,1782039054000,-500.0,0.00027945,2]
[425937468,1782039054000,-500.0,0.00027945,2]
[425937469,1782039054000,-500.0,0.00027945,2]
[425937464,1782039054000,-500.0,0.00027945,2]
[425937461,1782039054000,-500.0,0.00027945,2]
[425937467,1782039054000,-500.0,0.00027945,2]
[425937526,1782039055000,-1019.73,0.00027945,2]
[425937519,1782039055000,-500.0,0.00027945,2]
[425937515,1782039055000,-500.0,0.00027945,2]
[425937516,1782039055000,-500.0,0.00027945,2]
[425937523,1782039055000,-500.0,0.00027945,2]
[425937524,1782039055000,-500.0,0.00027945,2]
[425937522,1782039055000,-576.15,0.00027945,2]
[425937533,1782039055000,-500.0,0.00027945,2]
[425937525,1782039055000,-500.0,0.00027945,2]
[425937536,1782039055000,-500.0,0.00027945,2]
[425937528,1782039055000,-694.81,0.00027945,2]
[425937527,1782039055000,-500.0,0.00027945,2]
[425937529,1782039055000,-500.0,0.00027945,2]
[425937530,1782039055000,-500.0,0.00027945,2]
[425937531,1782039055000,-632.44,0.00027945,2]
[425937541,1782039055000,-500.0,0.00027945,2]
[425937534,1782039055000,-500.0,0.00027945,2]
[425937540,1782039055000,-500.0,0.00027945,2]
[425937518,1782039055000,-500.0,0.00027945,2]
[425937532,1782039055000,-500.0,0.00027945,2]
[425937521,1782039055000,-500.0,0.00027945,2]
[425937495,1782039055000,-500.0,0.00027945,2]
[425937514,1782039055000,-500.0,0.00027945,2]
[425937539,1782039055000,-602.69,0.00027945,2]
[425937497,1782039055000,-500.0,0.00027945,2]
[425937496,1782039055000,-500.0,0.00027945,2]
[425937498,1782039055000,-500.0,0.00027945,2]
[425937500,1782039055000,-500.0,0.00027945,2]
[425937499,1782039055000,-500.0,0.00027945,2]
[425937501,1782039055000,-500.0,0.00027945,2]
[425937502,1782039055000,-500.0,0.00027945,2]
[425937503,1782039055000,-522.743824,0.00027945,2]
[425937505,1782039055000,-500.0,0.00027945,2]
[425937506,1782039055000,-500.0,0.00027945,2]
[425937504,1782039055000,-500.0,0.00027945,2]
[425937511,1782039055000,-797.35,0.00027945,2]
[425937508,1782039055000,-500.0,0.00027945,2]
[425937507,1782039055000,-500.0,0.00027945,2]
[425937509,1782039055000,-500.0,0.00027945,2]
[425937512,1782039055000,-500.0,0.00027945,2]
[425937513,1782039055000,-614.28520839,0.00027945,2]
[425937520,1782039055000,-500.0,0.00027945,2]
[425937517,1782039055000,-500.0,0.00027945,2]
[425937537,1782039055000,-500.0,0.00027945,2]
[425937510,1782039055000,-697.33,0.00027945,2]
[425937542,1782039055000,-363.90048019,0.00027945,2]
[425937563,1782039055000,-500.0,0.00027945,2]
[425937568,1782039055000,-500.0,0.00027945,2]
[425937569,1782039055000,-921.54,0.00027945,2]
[425937567,1782039055000,-500.0,0.00027945,2]
[425937570,1782039055000,-500.0,0.00027945,2]
[425937571,1782039055000,-567.78109464,0.00027945,2]
[425937576,1782039055000,-500.0,0.00027945,2]
[425937579,1782039055000,-500.0,0.00027945,2]
[425937573,1782039055000,-500.0,0.00027945,2]
[425937575,1782039055000,-500.0,0.00027945,2]
[425937574,1782039055000,-500.0,0.00027945,2]
[425937572,1782039055000,-500.0,0.00027945,2]
[425937578,1782039055000,-500.0,0.00027945,2]
[425937577,1782039055000,-500.0,0.00027945,2]
[425937583,1782039055000,-500.0,0.00027945,2]
[425937582,1782039055000,-500.0,0.00027945,2]
[425937584,1782039055000,-500.0,0.00027945,2]
[425937581,1782039055000,-500.0,0.00027945,2]
[425937535,1782039055000,-500.0,0.00027945,2]
[425937564,1782039055000,-500.0,0.00027945,2]
[425937565,1782039055000,-828.66,0.00027945,2]
[425937580,1782039055000,-500.0,0.00027945,2]
[425937562,1782039055000,-500.0,0.00027945,2]
[425937566,1782039055000,-156.37377183,0.00027945,2]
[425937538,1782039055000,-500.0,0.00027945,2]
[425937549,1782039055000,-500.0,0.00027945,2]
[425937544,1782039055000,-557.98,0.00027945,2]
[425937548,1782039055000,-500.0,0.00027945,2]
[425937547,1782039055000,-500.0,0.00027945,2]
[425937550,1782039055000,-500.0,0.00027945,2]
[425937543,1782039055000,-500.0,0.00027945,2]
[425937546,1782039055000,-500.0,0.00027945,2]
[425937551,1782039055000,-500.0,0.00027945,2]
[425937545,1782039055000,-533.69,0.00027945,2]
[425937552,1782039055000,-675.01,0.00027945,2]
[425937557,1782039055000,-509.99818067,0.00027945,2]
[425937553,1782039055000,-500.0,0.00027945,2]
[425937555,1782039055000,-500.0,0.00027945,2]
[425937556,1782039055000,-500.0,0.00027945,2]
[425937558,1782039055000,-500.0,0.00027945,2]
[425937560,1782039055000,-500.0,0.00027945,2]
[425937559,1782039055000,-500.0,0.00027945,2]
[425937554,1782039055000,-500.0,0.00027945,2]
[425937561,1782039055000,-679.35,0.00027945,2]
[425937601,1782039056000,-500.0,0.00027945,2]
[425937603,1782039056000,-500.0,0.00027945,2]
[425937602,1782039056000,-500.0,0.00027945,2]
[425937604,1782039056000,-500.0,0.00027945,2]
[425937606,1782039056000,-500.0,0.00027945,2]
[425937609,1782039056000,-500.0,0.00027945,2]
[425937610,1782039056000,-500.0,0.00027945,2]
[425937607,1782039056000,-42385.551759,0.00027945,2]
[425937608,1782039056000,-500.0,0.00027945,2]
[425937612,1782039056000,-500.0,0.00027945,2]
[425937600,1782039056000,-500.0,0.00027945,2]
[425937605,1782039056000,-500.0,0.00027945,2]
[425937596,1782039056000,-500.0,0.00027945,2]
[425937588,1782039056000,-500.0,0.00027945,2]
[425937598,1782039056000,-500.0,0.00027945,2]
[425937599,1782039056000,-538.61,0.00027945,2]
[425937594,1782039056000,-500.0,0.00027945,2]
[425937595,1782039056000,-535.01,0.00027945,2]
[425937592,1782039056000,-500.0,0.00027945,2]
[425937593,1782039056000,-270.46056362,0.00027945,2]
[425937591,1782039056000,-500.0,0.00027945,2]
[425937590,1782039056000,-500.0,0.00027945,2]
[425937586,1782039056000,-500.0,0.00027945,2]
[425937589,1782039056000,-615.39,0.00027945,2]
[425937587,1782039056000,-558.96784261,0.00027945,2]
[425937585,1782039056000,-500.0,0.00027945,2]
[425937611,1782039056000,-500.0,0.00027945,2]
[425937597,1782039056000,-500.0,0.00027945,2]
[425937613,1782039056000,-500.0,0.00027945,2]
[425937614,1782039056000,-546.21,0.00027945,2]
[425937616,1782039056000,-500.0,0.00027945,2]
[425937615,1782039056000,-500.0,0.00027945,2]
[425937642,1782039056000,-500.0,0.00027945,2]
[425937644,1782039056000,-500.0,0.00027945,2]
[425937643,1782039056000,-500.0,0.00027945,2]
[425937639,1782039056000,-287.82845488,0.00027945,2]
[425937638,1782039056000,-500.0,0.00027945,2]
[425937641,1782039056000,-531.49599608,0.00027945,2]
[425937637,1782039056000,-724.45,0.00027945,2]
[425937636,1782039056000,-500.9254603,0.00027945,2]
[425937634,1782039056000,-500.0,0.00027945,2]
[425937635,1782039056000,-685.72,0.00027945,2]
[425937633,1782039056000,-1068.75,0.00027945,2]
[425937632,1782039056000,-1542.04,0.00027945,2]
[425937631,1782039056000,-500.0,0.00027945,2]
[425937640,1782039056000,-604.37957239,0.00027945,2]
[425937629,1782039056000,-500.0,0.00027945,2]
[425937617,1782039056000,-698.97,0.00027945,2]
[425937630,1782039056000,-880.36,0.00027945,2]
[425937621,1782039056000,-161.00287,0.00027945,2]
[425937619,1782039056000,-500.0,0.00027945,2]
[425937618,1782039056000,-500.0,0.00027945,2]
[425937625,1782039056000,-500.0,0.00027945,2]
[425937620,1782039056000,-500.0,0.00027945,2]
[425937622,1782039056000,-500.0,0.00027945,2]
[425937628,1782039056000,-500.0,0.00027945,2]
[425937626,1782039056000,-500.0,0.00027945,2]
[425937627,1782039056000,-500.0,0.00027945,2]
[425937624,1782039056000,-500.0,0.00027945,2]
[425937623,1782039056000,-500.0,0.00027945,2]
[425937675,1782039057000,-864.07,0.00027945,2]
[425937665,1782039057000,-500.0,0.00027945,2]
[425937670,1782039057000,-541.13,0.00027945,2]
[425937669,1782039057000,-500.0,0.00027945,2]
[425937666,1782039057000,-500.0,0.00027945,2]
[425937668,1782039057000,-500.0,0.00027945,2]
[425937663,1782039057000,-500.0,0.00027945,2]
[425937676,1782039057000,-500.0,0.00027945,2]